fUSD/lending_fUSD_20250823
["ID","MTS","AMOUNT","RATE_DAILY","PERIOD"]
[380947721,1755912299001,-500.0,0.00013698,2]
[380947722,1755912299021,-500.0,0.00013698,2]
[380947723,1755912299042,-400.0,0.00013698,2]
[380947724,1755912299062,-500.0,0.00013698,2]
[380947725,1755912299083,-400.0,0.00013698,2]
[380947726,1755912299103,-400.0,0.00013698,2]
[380947727,1755912299123,-421.32,0.00013698,2]
[380947728,1755912299144,-400.0,0.00013698,2]
[380947729,1755912299165,-478.43,0.00013698,2]
[380947730,1755912299187,-400.0,0.00013698,2]
[380947731,1755912299209,-584.73,0.00013698,2]
[380947732,1755912299232,-4320.78,0.00013698,2]
[380947733,1755912299254,-400.0,0.00013698,2]
[380947734,1755912299273,-487.04,0.00013698,2]
[380947735,1755912299293,-504.31,0.00013698,2]
[380947736,1755912299318,-1083.06,0.00013698,2]
[380947737,1755912299339,-400.0,0.00013698,2]
[380947738,1755912299359,-595.85,0.00013698,2]
[380947739,1755912299380,-833.3,0.00013698,2]
[380947740,1755912299400,-400.0,0.00013698,2]
[380947741,1755912299419,-336.28287231,0.00013698,2]
[380947742,1755912299439,-400.0,0.00013698,2]
[380947743,1755912299463,-737.97,0.00013698,2]
[380947744,1755912299482,-510.81,0.00013698,2]
[380947745,1755912299502,-542.43,0.00013698,2]
[380947746,1755912299522,-400.0,0.00013698,2]
[380947747,1755912299543,-451.04,0.00013698,2]
[380947748,1755912299564,-400.0,0.00013698,2]
[380947749,1755912299585,-714.5,0.00013698,2]
[380947750,1755912299605,-477.02,0.00013698,2]
[380947751,1755912299625,-400.0,0.00013698,2]
[380947752,1755912299645,-507.43,0.00013698,2]
[380947753,1755912299666,-750.91,0.00013698,2]
[380947754,1755912299687,-667.8,0.00013698,2]
[380947755,1755912299709,-922.02,0.00013698,2]
[380947756,1755912299729,-882.41,0.00013698,2]
[380947757,1755912299751,-400.0,0.00013698,2]
[380947758,1755912299771,-400.0,0.00013698,2]
[380947759,1755912299791,-400.0,0.00013698,2]
[380947760,1755912299811,-400.0,0.00013698,2]
[380947761,1755912299831,-400.0,0.00013698,2]
[380947762,1755912299851,-484.74,0.00013698,2]
[380947763,1755912299873,-754.76,0.00013698,2]
[380947764,1755912299893,-400.0,0.00013698,2]
[380947765,1755912299913,-522.84901015,0.00013698,2]
[380947766,1755912299933,-510.89,0.00013698,2]
[380947767,1755912299955,-1030.1,0.00013698,2]
[380947768,1755912299974,-552.01,0.00013698,2]
[380947769,1755912299994,-400.0,0.00013698,2]
[380947770,1755912300014,-400.0,0.00013698,2]
[380947771,1755912300035,-432.42,0.00013698,2]
[380947772,1755912300055,-436.99,0.00013698,2]
[380947773,1755912300077,-400.0,0.00013698,2]
[380947774,1755912300098,-657.25,0.00013698,2]
[380947775,1755912300117,-400.0,0.00013698,2]
[380947776,1755912300140,-601.91,0.00013698,2]
[380947777,1755912300160,-400.0,0.00013698,2]
[380947778,1755912300181,-438.81,0.00013698,2]
[380947779,1755912300494,-406.06,0.00013698,2]
[380947780,1755912300515,-400.0,0.00013698,2]
[380947781,1755912300536,-400.0,0.00013698,2]
[380947782,1755912300557,-400.0,0.00013698,2]
[380947783,1755912300579,-400.0,0.00013698,2]
[380947784,1755912300599,-400.0,0.00013698,2]
[380947785,1755912300619,-417.45,0.00013698,2]
[380947786,1755912300640,-400.0,0.00013698,2]
[380947787,1755912300660,-400.0,0.00013698,2]
[380947788,1755912300681,-400.0,0.00013698,2]
[380947789,1755912300701,-486.18,0.00013698,2]
[380947790,1755912300721,-1067.81,0.00013698,2]
[380947791,1755912300741,-400.0,0.00013698,2]
[380947792,1755912300762,-400.0,0.00013698,2]
[380947793,1755912300785,-1139.89,0.00013698,2]
[380947794,1755912300805,-400.0,0.00013698,2]
[380947795,1755912300829,-400.0,0.00013698,2]
[380947796,1755912300850,-400.0,0.00013698,2]
[380947797,1755912300872,-400.0,0.00013698,2]
[380947798,1755912300893,-578.42,0.00013698,2]
[380947799,1755912300920,-787.41,0.00013698,2]
[380947800,1755912300946,-786.01,0.00013698,2]
[380947801,1755912300968,-400.0,0.00013698,2]
[380947802,1755912300989,-400.0,0.00013698,2]
[380947803,1755912301010,-400.0,0.00013698,2]
[380947804,1755912301031,-400.0,0.00013698,2]
[380947805,1755912301052,-500.0,0.00013698,2]
[380947806,1755912301075,-1097.48,0.00013698,2]
[380947807,1755912301095,-1145.67,0.00013698,2]
[380947808,1755912301116,-500.0,0.00013698,2]
[380947809,1755912301138,-735.64,0.00013698,2]
[380947810,1755912301161,-500.0,0.00013698,2]
[380947811,1755912301182,-624.95,0.00013698,2]
[380947812,1755912301203,-400.0,0.00013698,2]
[380947813,1755912301224,-400.0,0.00013698,2]
[380947814,1755912301248,-400.0,0.00013698,2]
[380947815,1755912301268,-400.0,0.00013698,2]
[380947816,1755912301289,-761.63,0.00013698,2]
[380947817,1755912301310,-412.2,0.00013698,2]
[380947818,1755912301332,-893.56,0.00013698,2]
[380947819,1755912301353,-400.0,0.00013698,2]
[380947820,1755912301374,-655.09,0.00013698,2]
[380947821,1755912301395,-400.0,0.00013698,2]
[380947822,1755912301416,-439.98,0.00013698,2]
[380947823,1755912301436,-400.0,0.00013698,2]
[380947824,1755912301456,-400.0,0.00013698,2]
[380947825,1755912301476,-705.29,0.00013698,2]
[380947826,1755912301496,-400.0,0.00013698,2]
[380947827,1755912301516,-400.0,0.00013698,2]
[380947828,1755912301536,-734.24,0.00013698,2]
[380947829,1755912301557,-400.0,0.00013698,2]
[380947830,1755912301578,-716.27,0.00013698,2]
[380947831,1755912301598,-400.0,0.00013698,2]
[380947832,1755912301618,-400.0,0.00013698,2]
[380947833,1755912301640,-685.69,0.00013698,2]
[380947834,1755912301661,-677.21,0.00013698,2]
[380947835,1755912301682,-400.0,0.00013698,2]
[380947836,1755912301704,-773.75,0.00013698,2]
[380947837,1755912301725,-400.0,0.00013698,2]
[380947838,1755912301745,-460.0,0.00013698,2]
[380947839,1755912301766,-407.46,0.00013698,2]
[380947840,1755912301787,-400.0,0.00013698,2]
[380947841,1755912301808,-503.77,0.00013698,2]
[380947842,1755912301830,-400.0,0.00013698,2]
[380947843,1755912301851,-755.23,0.00013698,2]
[380947844,1755912301873,-400.0,0.00013698,2]
[380947845,1755912301894,-787.27,0.00013698,2]
[380947846,1755912301916,-493.83411841,0.00013698,2]
[380947847,1755912301937,-831.56,0.00013698,2]
[380947848,1755912301958,-651.98,0.00013698,2]
[380947849,1755912301979,-709.77,0.00013698,2]
[380947850,1755912301999,-742.35,0.00013698,2]
[380947851,1755912302020,-400.0,0.00013698,2]
[380947852,1755912302040,-506.14,0.00013698,2]
[380947853,1755912302061,-541.87,0.00013698,2]
[380947854,1755912302083,-935.68,0.00013698,2]
[380947855,1755912302105,-400.0,0.00013698,2]
[380947856,1755912302126,-400.0,0.00013698,2]
[380947857,1755912302147,-400.0,0.00013698,2]
[380947858,1755912302169,-462.17,0.00013698,2]
[380947859,1755912302190,-400.0,0.00013698,2]
[380947860,1755912302212,-400.0,0.00013698,2]
[380947861,1755912302236,-1030.63,0.00013698,2]
[380947862,1755912302258,-400.0,0.00013698,2]
[380947863,1755912302281,-400.0,0.00013698,2]
[380947864,1755912302302,-422.39,0.00013698,2]
[380947865,1755912302329,-400.0,0.00013698,2]
[380947866,1755912302349,-400.0,0.00013698,2]
[380947867,1755912302369,-400.0,0.00013698,2]
[380947868,1755912302389,-400.0,0.00013698,2]
[380947869,1755912302410,-535.7,0.00013698,2]
[380947870,1755912302430,-172.66656138,0.00013698,2]
[380947871,1755912302452,-513.25,0.00013698,2]
[380947872,1755912302473,-400.0,0.00013698,2]
[380947873,1755912302495,-601.7,0.00013698,2]
[380947874,1755912302517,-598.88,0.00013698,2]
[380947875,1755912302539,-400.0,0.00013698,2]
[380947876,1755912302559,-729.0,0.00013698,2]
[380947877,1755912302580,-400.0,0.00013698,2]
[380947878,1755912302600,-560.98,0.00013698,2]
[380947879,1755912302621,-482.06,0.00013698,2]
[380947880,1755912302643,-400.0,0.00013698,2]
[380947881,1755912302664,-400.0,0.00013698,2]
[380947882,1755912302684,-648.16,0.00013698,2]
[380947883,1755912302705,-400.0,0.00013698,2]
[380947884,1755912302725,-400.0,0.00013698,2]
[380947885,1755912302746,-680.09,0.00013698,2]
[380947886,1755912302766,-400.0,0.00013698,2]
[380947887,1755912302786,-1362.5,0.00013698,2]
[380947888,1755912302806,-400.0,0.00013698,2]
[380947889,1755912302828,-485.12,0.00013698,2]
[380947890,1755912302852,-581.45,0.00013698,2]
[380947891,1755912302872,-460.9065685,0.00013698,2]
[380947892,1755912302894,-400.0,0.00013698,2]
[380947893,1755912302916,-483.72,0.00013698,2]
[380947894,1755912302938,-400.0,0.00013698,2]
[380947895,1755912302959,-594.63,0.00013698,2]
[380947896,1755912302980,-400.0,0.00013698,2]
[380947897,1755912303000,-400.0,0.00013698,2]
[380947898,1755912303021,-1064.3,0.00013698,2]
[380947899,1755912303044,-738.14,0.00013698,2]
[380947900,1755912303067,-400.0,0.00013698,2]
[380947901,1755912303091,-463.13,0.00013698,2]
[380947902,1755912303114,-400.0,0.00013698,2]
[380947903,1755912303136,-607.66,0.00013698,2]
[380947904,1755912303159,-552.03,0.00013698,2]
[380947905,1755912303182,-400.0,0.00013698,2]
[380947906,1755912303204,-400.0,0.00013698,2]
[380947907,1755912303226,-400.0,0.00013698,2]
[380947908,1755912303251,-400.0,0.00013698,2]
[380947909,1755912303274,-400.0,0.00013698,2]
[380947910,1755912303297,-358.36066732,0.00013698,2]
[380947911,1755912303320,-400.0,0.00013698,2]
[380947912,1755912303342,-453.56,0.00013698,2]
[380947913,1755912303365,-400.0,0.00013698,2]
[380947914,1755912303387,-506.32,0.00013698,2]
[380947915,1755912303410,-400.0,0.00013698,2]
[380947916,1755912303432,-400.0,0.00013698,2]
[380947917,1755912303454,-657.0,0.00013698,2]
[380947918,1755912303476,-460.21,0.00013698,2]
[380947919,1755912303498,-664.59,0.00013698,2]
[380947920,1755912303519,-400.0,0.00013698,2]
[380947921,1755912303541,-400.0,0.00013698,2]
[380947922,1755912303562,-518.18,0.00013698,2]
[380947923,1755912303583,-400.0,0.00013698,2]
[380947924,1755912303605,-471.3,0.00013698,2]
[380947925,1755912303627,-561.65,0.00013698,2]
[380947926,1755912303649,-548.04,0.00013698,2]
[380947927,1755912303671,-400.0,0.00013698,2]
[380947928,1755912303694,-720.42,0.00013698,2]
[380947929,1755912303716,-400.0,0.00013698,2]
[380947930,1755912303737,-400.0,0.00013698,2]
[380947931,1755912303758,-418.96,0.00013698,2]
[380947932,1755912303780,-538.71,0.00013698,2]
[380947933,1755912303801,-400.0,0.00013698,2]
[380947934,1755912303823,-400.0,0.00013698,2]
[380947935,1755912303845,-623.23,0.00013698,2]
[380947936,1755912303866,-490.94,0.00013698,2]
[380947937,1755912303889,-400.0,0.00013698,2]
[380947938,1755912303911,-924.31,0.00013698,2]
[380947939,1755912303933,-700.36,0.00013698,2]
[380947940,1755912303955,-400.0,0.00013698,2]
[380947941,1755912303980,-417.51,0.00013698,2]
[380947942,1755912304002,-400.0,0.00013698,2]
[380947943,1755912304023,-2189.07,0.00013698,2]
[380947944,1755912304045,-407.86,0.00013698,2]
[380947945,1755912304067,-400.0,0.00013698,2]
[380947946,1755912304090,-400.0,0.00013698,2]
[380947947,1755912304114,-492.11,0.00013698,2]
[380947948,1755912304143,-400.0,0.00013698,2]
[380947949,1755912304166,-400.0,0.00013698,2]
[380947950,1755912304189,-400.0,0.00013698,2]
[380947951,1755912304211,-704.8,0.00013698,2]
[380947952,1755912304235,-585.32,0.00013698,2]
[380947953,1755912304258,-1140.41204485,0.00013698,2]
[380947954,1755912310230,-382.882241,0.00011,2]
[380947955,1755912312306,-250.242664,0.00011,2]
[380947956,1755912313355,-190.617336,0.00011,2]
[380947957,1755912315897,-167.491163,0.00011,2]
[380947958,1755912366002,-300.0,0.00010999,2]
[380947959,1755912366024,-500.0,0.00010999,2]
[380947960,1755912366050,-89200.0,0.00011,2]
[380947963,1755912402905,160.0,0.00011886,7]
[380947964,1755912450207,-200.0,0.000104,3]
[380947965,1755912461157,-500.0,0.000105,3]
[380947966,1755912461181,-800.0,0.000106,3]
[380947967,1755912461204,-1100.0,0.000107,3]
[380947968,1755912461228,-1400.0,0.000108,3]
[380947969,1755912461250,-1219.73909746,0.000109,2]
[380947970,1755912461276,-454.78454617,0.000109,2]
[380947971,1755912461301,-1294.3265301,0.000109,2]
[380947972,1755912461323,-200.0,0.000109,3]
[380947973,1755912461345,-247.84197881,0.00010999,3]
[380947974,1755912461365,-150.0,0.00010999,2]
[380947975,1755912461388,-342.04023266,0.00010999,2]
[380947976,1755912461410,-500.0,0.00010999,2]
[380947977,1755912461431,-500.0,0.00010999,2]
[380947978,1755912461453,-315.93713087,0.00010999,2]
[380947979,1755912461477,-359.69175402,0.00010999,2]
[380947980,1755912461501,-309615.63872991,0.00011,2]
[380947981,1755912461945,200.0,0.000139,5]
[380947982,1755912484967,-209.390837,0.000104,3]
[380947983,1755912486229,-690.609163,0.000104,3]
[380947984,1755912486254,-1900.0,0.000105,3]
[380947985,1755912486275,-188.16201946,0.000109,2]
[380947986,1755912486298,-500.0,0.0001098,2]
[380947987,1755912486325,-249.41344395,0.00010999,2]
[380947988,1755912486348,-667587.74566638,0.00011,2]
[380947989,1755912486369,-15887.85521019,0.00011,2]
[380947990,1755912486393,-177.0,0.00011,2]
[380947991,1755912486413,-310.0,0.00011,2]
[380947992,1755912486434,-32509.21449702,0.00011,2]
[380947993,1755912496781,900.0,0.000139,5]
[380947994,1755912496882,-459.57933866,0.000106,3]
[380947996,1755912505652,-181.43141766,0.000106,3]
[380947997,1755912511462,-626.01,0.000106,3]
[380947999,1755912517835,-1532.97924368,0.000106,3]
[380948000,1755912517858,-3800.0,0.000107,3]
[380948001,1755912517881,-4800.0,0.000108,3]
[380948002,1755912517904,-900.0,0.000109,3]
[380948003,1755912517925,-500.0,0.00010973,2]
[380948004,1755912517946,-500.0,0.00010973,2]
[380948005,1755912517969,-500.0,0.00010999,2]
[380948006,1755912517990,-500.0,0.00010999,2]
[380948007,1755912518013,-500.0,0.00010999,2]
[380948008,1755912518036,-182.82390782,0.00010999,2]
[380948009,1755912518059,-500.0,0.00010999,2]
[380948010,1755912518081,-500.0,0.00010999,2]
[380948011,1755912518103,-500.0,0.00010999,2]
[380948012,1755912518126,-500.0,0.00010999,2]
[380948013,1755912518148,-500.0,0.00010999,2]
[380948014,1755912518170,-500.0,0.00010999,2]
[380948015,1755912518525,-500.0,0.00010999,2]
[380948016,1755912518549,-500.0,0.00010999,2]
[380948017,1755912518572,-151.46200247,0.00010999,2]
[380948018,1755912518593,-500.0,0.00010999,2]
[380948019,1755912518615,-500.0,0.00010999,2]
[380948020,1755912518636,-500.0,0.00010999,2]
[380948021,1755912518658,-500.0,0.00010999,2]
[380948022,1755912518680,-500.0,0.00010999,2]
[380948023,1755912518703,-699632.73484603,0.00011,2]
[380948026,1755912548039,-480.14018244,0.000109,2]
[380948027,1755912548061,-480.14018242,0.00010913,2]
[380948028,1755912548082,-480.14018242,0.00010926,2]
[380948029,1755912548105,-480.14018242,0.00010939,2]
[380948030,1755912548126,-480.14018242,0.00010953,2]
[380948031,1755912548145,-500.0,0.00010973,2]
[380948032,1755912548166,-500.0,0.00010973,2]
[380948033,1755912548186,-500.0,0.00010973,2]
[380948034,1755912548206,-500.0,0.00010973,2]
[380948035,1755912548225,-500.0,0.00010973,2]
[380948036,1755912548247,-165099.29908788,0.00011,2]
[380948038,1755912576421,17399.59620891,0.000138,120]
[380948045,1755912632122,-283.43,0.000108,2]
[380948046,1755912632134,-158.73797795,0.000109,2]
[380948047,1755912632143,-188.16201944,0.000109,2]
[380948048,1755912632152,-2276.09335769,0.000109,2]
[380948049,1755912632162,-2500.0,0.0001095,2]
[380948050,1755912632171,-1872.92357445,0.00010959,2]
[380948051,1755912632281,-627.07642555,0.00010959,2]
[380948052,1755912632291,-480.14018242,0.00010966,2]
[380948053,1755912632300,-500.0,0.00010973,2]
[380948054,1755912632310,-500.0,0.00010973,2]
[380948055,1755912632319,-500.0,0.00010973,2]
[380948056,1755912632329,-480.14018242,0.00010979,2]
[380948057,1755912632340,-480.14018242,0.00010992,2]
[380948058,1755912632353,-300.0,0.00010999,2]
[380948059,1755912632362,-1200.0,0.00010999,2]
[380948060,1755912632371,-150.0,0.00010999,2]
[380948061,1755912632382,-150.0,0.00010999,2]
[380948062,1755912632392,-150.0,0.00010999,2]
[380948063,1755912632402,-150.0,0.00010999,2]
[380948065,1755912632414,-150.0,0.00010999,2]
[380948067,1755912632424,-150.0,0.00010999,2]
[380948068,1755912632433,-150.0,0.00010999,2]
[380948069,1755912632444,-150.0,0.00010999,2]
[380948070,1755912632453,-150.0,0.00010999,2]
[380948071,1755912632463,-150.0,0.00010999,2]
[380948072,1755912632472,-150.0,0.00010999,2]
[380948073,1755912632482,-150.0,0.00010999,2]
[380948075,1755912632491,-150.0,0.00010999,2]
[380948077,1755912632500,-8007.62070065,0.00011,2]
[380948079,1755912632512,-14642.67046957,0.00011,2]
[380948091,1755912632638,-438.47196682,0.00011,2]
[380948093,1755912638075,-941.972294,0.00010845,2]
[380948094,1755912638085,-1014.9766,0.00010999,2]
[380948095,1755912638095,-2498.18353039,0.00011,2]
[380948096,1755912638105,-5134.86757561,0.00011,2]
[380948097,1755912638215,-5652.89334393,0.00011,2]
[380948098,1755912638304,-2426.16040402,0.00011,2]
[380948099,1755912638343,-4595.33392035,0.00011,2]
[380948115,1755912649727,-4156.12126238,0.00011,2]
[380948116,1755912650597,-578.64133037,0.0001099,2]
[380948117,1755912650607,-1777376.1687808,0.00011,2]
[380948118,1755912650617,-7299013.57445392,0.00011,2]
[380948119,1755912650626,-197067.19,0.00011,2]
[380948120,1755912650636,-4314397.78671833,0.00011,2]
[380948121,1755912650647,-11228.44,0.00011,2]
[380948122,1755912650656,-151.933676,0.00011,2]
[380948123,1755912650665,-243.169796,0.00011,2]
[380948124,1755912650676,-243.169796,0.00011,2]
[380948125,1755912650685,-151.387064,0.00011,2]
[380948126,1755912650696,-243.169796,0.00011,2]
[380948127,1755912650705,-151.0,0.00011,2]
[380948128,1755912650715,-151.0,0.00011,2]
[380948129,1755912650724,-243.169796,0.00011,2]
[380948130,1755912650733,-151.0,0.00011,2]
[380948131,1755912650742,-151.0,0.00011,2]
[380948132,1755912650752,-298.500409,0.00011,2]
[380948133,1755912650761,-151.0,0.00011,2]
[380948134,1755912650771,-151.0,0.00011,2]
[380948135,1755912650781,-151.0,0.00011,2]
[380948136,1755912650791,-151.689215,0.00011,2]
[380948137,1755912650800,-298.500409,0.00011,2]
[380948138,1755912650811,-152.119509,0.00011,2]
[380948139,1755912650821,-298.500409,0.00011,2]
[380948140,1755912650830,-151.0,0.00011,2]
[380948141,1755912650839,-151.0,0.00011,2]
[380948142,1755912650849,-151.0,0.00011,2]
[380948143,1755912650859,-298.500409,0.00011,2]
[380948144,1755912650868,-151.0,0.00011,2]
[380948145,1755912650877,-180.825234,0.00011,2]
[380948146,1755912650887,-154.612316,0.00011,2]
[380948147,1755912650898,-150.0,0.00011091,2]
[380948148,1755912650907,-98201.8673326,0.00011092,2]
[380948149,1755912650917,-92907.3517552,0.00011099,2]
[380948150,1755912650926,-177.0,0.00011363,2]
[380948151,1755912650936,-3163.78,0.00011483,2]
[380948152,1755912650945,-454.78454612,0.0001149,2]
[380948153,1755912650954,-500.0,0.00011521,2]
[380948154,1755912650964,-965.75989465,0.00011521,2]
[380948155,1755912650974,-500.0,0.00011521,2]
[380948156,1755912650983,-1000.0,0.00011521,2]
[380948157,1755912650993,-1000.0,0.00011521,2]
[380948158,1755912651003,-45785.7273482,0.00011548,2]
[380948159,1755912651013,-21911.7983848,0.00011664,2]
[380948160,1755912651022,-180.0,0.00011721,2]
[380948161,1755912651031,-500.0,0.00011729,2]
[380948162,1755912651041,-4889.1830827,0.00011791,2]
[380948163,1755912651051,-842.0,0.0001187,2]
[380948164,1755912651060,-1294.32653009,0.000119,2]
[380948165,1755912651070,-1342.57586686,0.00011929,2]
[380948166,1755912651079,-250.0,0.0001193,2]
[380948167,1755912651088,-1015.806,0.00011973,2]
[380948168,1755912651098,-310.0,0.0001199,2]
[380948169,1755912651107,-500.0,0.0001199,2]
[380948170,1755912651117,-150.0,0.0001199,2]
[380948171,1755912651127,-255.0,0.00012044,2]
[380948172,1755912651136,-1500.0,0.00012068,2]
[380948173,1755912651146,-464.05391083,0.00012068,2]
[380948174,1755912651156,-454.78454612,0.0001208,2]
[380948175,1755912651165,-420.0,0.00012086,2]
[380948176,1755912651174,-500.0,0.00012099,2]
[380948177,1755912651183,-250.0,0.00012099,2]
[380948178,1755912651193,-150.0,0.00012099,4]
[380948179,1755912651202,-1680.0,0.00012099,2]
[380948180,1755912651212,-310.0,0.000121,2]
[380948181,1755912651222,-177.0,0.000121,2]
[380948182,1755912651231,-478.29799102,0.00012106,2]
[380948183,1755912651242,-10216.1766757,0.00012143,2]
[380948184,1755912651252,-2279.5371377,0.00012276,2]
[380948185,1755912651262,-489.61558461,0.00012476,2]
[380948186,1755912651271,-2000.0,0.00012616,2]
[380948187,1755912651281,-454.78454612,0.0001267,2]
[380948188,1755912651291,-303.09,0.00012847,2]
[380948189,1755912651301,-1000.0,0.00012859,2]
[380948190,1755912651311,-1294.32653009,0.000129,2]
[380948191,1755912651320,-195.13,0.000129,2]
[380948192,1755912651330,-250.0,0.000129,2]
[380948193,1755912651339,-11228.44,0.00013,2]
[380948194,1755912651349,-1798.1573,0.00013015,2]
[380948195,1755912651360,-4728.2466,0.00013015,2]
[380948196,1755912651371,-1219.73909744,0.00013071,2]
[380948197,1755912651380,-2500.0,0.00013164,2]
[380948198,1755912651391,-433.0,0.00013187,2]
[380948199,1755912651401,-454.78454612,0.0001326,2]
[380948200,1755912651411,-587.0,0.00013282,2]
[380948201,1755912651421,-197067.19,0.000133,2]
[380948202,1755912651431,-2351.0,0.00013308,2]
[380948203,1755912651440,-214.0,0.0001332,2]
[380948204,1755912651450,-529.299,0.00013548,2]
[380948205,1755912651460,-1000.0,0.00013598,2]
[380948206,1755912651469,-2500.0,0.00013598,2]
[380948207,1755912651478,-5000.0,0.00013598,2]
[380948208,1755912651488,-10000.0,0.00013598,2]
[380948209,1755912651498,-29505.3472,0.00013598,2]
[380948210,1755912651507,-188.0,0.00013634,2]
[380948211,1755912651517,-1944.44445,0.0001366,2]
[380948212,1755912651526,-11560.8782348,0.00013678,2]
[380948213,1755912651536,-150.0,0.00013684,2]
[380948214,1755912651546,-792.26771128,0.00013685,2]
[380948215,1755912651555,-1009.75296535,0.00013685,2]
[380948216,1755912651565,-1227.23821943,0.00013686,2]
[380948217,1755912651575,-1444.72347351,0.00013686,2]
[380948218,1755912651585,-1662.20872758,0.00013686,2]
[380948219,1755912651595,-1879.69398166,0.00013687,2]
[380948220,1755912651604,-2097.17923574,0.00013687,2]
[380948221,1755912651614,-150.0,0.00013687,2]
[380948222,1755912651625,-2314.66448981,0.00013688,2]
[380948223,1755912651635,-2532.14974389,0.00013688,2]
[380948224,1755912651646,-400.0,0.00013698,2]
[380948225,1755912651656,-400.0,0.00013698,2]
[380948226,1755912651666,-400.0,0.00013698,2]
[380948227,1755912651676,-400.0,0.00013698,2]
[380948228,1755912651686,-536.25,0.00013698,2]
[380948229,1755912651696,-400.0,0.00013698,2]
[380948230,1755912651705,-487.76243004,0.00013698,2]
[380948231,1755912651716,-419.51,0.00013698,2]
[380948232,1755912651725,-400.0,0.00013698,2]
[380948233,1755912651735,-400.0,0.00013698,2]
[380948234,1755912651745,-416.08,0.00013698,2]
[380948235,1755912651754,-400.0,0.00013698,2]
[380948236,1755912651765,-400.0,0.00013698,2]
[380948237,1755912651775,-400.0,0.00013698,2]
[380948238,1755912651785,-552.15,0.00013698,2]
[380948239,1755912651794,-400.0,0.00013698,2]
[380948240,1755912651804,-400.0,0.00013698,2]
[380948241,1755912651814,-400.0,0.00013698,2]
[380948242,1755912651824,-546.38597261,0.00013698,2]
[380948243,1755912651834,-400.0,0.00013698,2]
[380948244,1755912651844,-685.75,0.00013698,2]
[380948245,1755912651854,-400.0,0.00013698,2]
[380948246,1755912651863,-400.0,0.00013698,2]
[380948247,1755912651873,-400.0,0.00013698,2]
[380948248,1755912651882,-400.0,0.00013698,2]
[380948249,1755912651893,-513.06253484,0.00013698,2]
[380948250,1755912651903,-1265.94,0.00013698,2]
[380948251,1755912651913,-400.0,0.00013698,2]
[380948252,1755912651922,-400.0,0.00013698,2]
[380948253,1755912651932,-400.0,0.00013698,2]
[380948254,1755912651942,-400.0,0.00013698,2]
[380948255,1755912651951,-475.58,0.00013698,2]
[380948256,1755912651961,-400.0,0.00013698,2]
[380948257,1755912651971,-400.0,0.00013698,2]
[380948258,1755912651981,-400.0,0.00013698,2]
[380948259,1755912651990,-433.85,0.00013698,2]
[380948260,1755912652000,-400.0,0.00013698,2]
[380948261,1755912652010,-400.0,0.00013698,2]
[380948262,1755912652019,-400.0,0.00013698,2]
[380948263,1755912652030,-400.0,0.00013698,2]
[380948264,1755912652041,-400.0,0.00013698,2]
[380948265,1755912652050,-400.0,0.00013698,2]